Cogmind - Beta 11 @@@ ROGUE MODE // 2022.04.16 @ 16:19:47 Player: Shadow Pussy wanter Result: Self-destructed Performance ------------- Evolutions (1) 500 Regions Visited (2) 400 Robots Destroyed (5) 25 Value Destroyed (208) 208 Prototype IDs (2) 40 Alien Tech Used (0) 0 Bonus (0) 0 TOTAL SCORE: 1173 Bonus ------- None Cogmind --------- Core Integrity 372/400 Matter 263/300 Energy 250/250 System Corruption 0% Temperature Cool (0) Movement Walking (190) Ox1 Location -9/Materials Parts ------- > --- POWER (1) -------- Ion Engine > --- PROPULSION (3) --- Light Treads Aluminum Leg Aluminum Leg > --- UTILITY (3) ------ Improved Heat Sink Large Storage Unit Weapon Shielding > --- WEAPON (2) ------- Medium Laser > --- INVENTORY (15) --- Ion Engine Ion Engine Ion Engine Ion Engine Light Treads Aluminum Leg Compact Wheel Small Storage Unit Weapon Shielding Small Laser Light Assault Rifle Rocket Launcher Peak State ------------ > --- POWER ------------ Ion Engine > --- PROPULSION ------- Light Treads Aluminum Leg Aluminum Leg > --- UTILITY ---------- Improved Heat Sink Large Storage Unit Weapon Shielding > --- WEAPON ----------- EM Pulse Gun Medium Laser > --- INVENTORY -------- Ion Engine Ion Engine Ion Engine Ion Engine Light Treads Aluminum Leg Compact Wheel Small Storage Unit Weapon Shielding Small Laser [Rating: 12] Favorites ----------- Power Ion Engine Engine Ion Engine Propulsion Aluminum Leg Treads Light Treads Leg Aluminum Leg Wheel Wheel Utility Improved Heat Sink Device Improved Heat Sink Storage Large Storage Unit Protection Weapon Shielding Weapon EM Pulse Gun Energy Gun EM Pulse Gun Build | -11 -10 -9 ------- Run | Scr Mat Mat Slots Evolved 2 | . . 2 Power . | . . . Propulsion 1 | . . 1 Utility 1 | . . 1 Weapon . | . . . Parts Attached 15 | 8 5 2 Power 2 | 1 1 . Engine 2 | 1 1 . Core . | . . . Reactor . | . . . Propulsion 4 | 2 1 1 Treads 1 | 1 . . Leg 2 | . 1 1 Wheel 1 | 1 . . Hover . | . . . Flight . | . . . Utility 4 | 1 2 1 Device 1 | . 1 . Storage 2 | 1 1 . Processor . | . . . Hackware . | . . . Protection 1 | . . 1 Artifact . | . . . Weapon 5 | 4 1 . Energy Gun 5 | 4 1 . Energy Cannon . | . . . Ballistic Gun . | . . . Ballistic Cannon . | . . . Launcher . | . . . Special Weapon . | . . . Impact Weapon . | . . . Slashing Weapon . | . . . Piercing Weapon . | . . . Special Melee Weapon . | . . . Unidentified Prototypes . | . . . Corrupted Parts 1 | . 1 . System Corruption 3 | . 3 . Parts Lost 3 | . 2 1 Power . | . . . Propulsion 1 | . 1 . Utility . | . . . Weapon 2 | . 1 1 Highest Loss Streak 2 | . 2 1 To Critical Strikes . | . . . Average Slot Usage (%) 97 | . 97 100 Engine 13 | . 14 11 Treads 13 | . 14 11 Leg 14 | . 12 22 Device 12 | . 12 11 Storage 13 | . 14 11 Protection 1 | . . 11 Energy Gun 26 | . 27 22 Naked Turns . | . . . Heaviest Build 31 | 14 30 31 Greatest Support 20 | 10 10 20 Greatest Overweight (x) 4 | 1 4 1 Average Overweight (x) 1 | . 1 1 Largest Inventory Capacity 15 | 8 15 15 Average Capacity 12 | 6 12 15 Most Carried 12 | 6 12 12 Average Carried 8 | 3 8 10 Final Capacity 15 | 8 15 15 Final Carried 12 | 6 12 12 Class Distribution -------------------- 100% | Mutant Dominant Class ---------------- Mutant | -10/Materials Mutant | -9/Materials Resources | -11 -10 -9 ----------- Run | Scr Mat Mat Matter Collected 300 | 205 95 . Remotely . | . . . Salvage Created 166 | . 166 . Parts 8 | . 8 . Haulers Intercepted . | . . . Recyclers Shooed . | . . . Parts Field Recycled . | . . . Retrieved Matter . | . . . Parts Self-Destructed . | . . . Prevented . | . . . Kills | -11 -10 -9 ------- Run | Scr Mat Mat Combat Hostiles Destroyed 4 | . 4 . Guns 2 | . 2 . AOE 2 | . 2 . Classes Destroyed 2 | . 2 . Watcher 1 | . 1 . Grunt 4 | . 4 . Best Kill Streak 4 | . 4 . Combat Bots Only 4 | . 4 . Max Kills in Single Turn 2 | . 2 . Gunslinging . | . . . Exploded 2 | . 2 . Melee . | . . . Uniques/NPCs Destroyed . | . . . Combat | -11 -10 -9 -------- Run | Scr Mat Mat Damage Taken 442 | . 279 163 Core 66 | . 38 28 Absorbed by Shields . | . . . Redirected to Shielding 16 | . . 16 Core Remaining (%) 92 | 100 84 . Volleys Fired 14 | . 14 . Largest 2 | . 2 . Hottest 90 | . 90 . Shots Fired 22 | . 22 . Gun 22 | . 22 . Cannon . | . . . Launcher . | . . . Special . | . . . Kinetic . | . . . Thermal 2 | . 2 . Explosive . | . . . Electromagnetic 20 | . 20 . Robot Hit Streak 6 | . 6 . Robot Miss Streak 2 | . 2 . Penetration Max . | . . . Secondary Targets . | . . . Shots Hit Robots 16 | . 16 . Core Hits 4 | . 4 . Critical Kills . | . . . Critical Parts Destroyed . | . . . Critical Strikes . | . . . Melee Attacks . | . . . Impact . | . . . Slashing . | . . . Piercing . | . . . Sneak Attacks . | . . . Combat Hostiles . | . . . Follow-up Attacks . | . . . Damage Inflicted 588 | . 588 . Guns 225 | . 225 . Cannons . | . . . Explosions 362 | . 362 . Melee . | . . . Ramming 1 | . 1 . Kinetic . | . . . Thermal 375 | . 375 . Explosive . | . . . Electromagnetic 212 | . 212 . Impact . | . . . Slashing . | . . . Piercing . | . . . Highest Corruption 3 | . 3 . Average Corruption 3 | . 3 . Corruption Purged . | . . . Corruption Blocked . | . . . Effects 7 | . 7 . Message Errors 1 | . 1 . Matter Fused 1 | . 1 . Heat Flow Errors 2 | . 2 . Data Loss (major) 3 | . 3 . Overload Shots . | . . . Overflow Damage 183 | . 183 . Projectiles . | . . . Explosions 183 | . 183 . Melee . | . . . Knockbacks . | . . . Impact . | . . . Kinetic . | . . . Secondary . | . . . Self-Inflicted Damage 150 | . 150 . Shots 2 | . 2 . Rammed . | . . . Targets Rammed 1 | . 1 . Kicked 1 | . 1 . Crushed . | . . . Highest Temperature 234 | . 234 . Average Temperature 116 | . 116 . Received Heat Transfer 132 | . 75 57 Siege Activations . | . . . Robots Corrupted . | . . . Combat Hostiles . | . . . Parts Fried 1 | . 1 . Impact Corruptions . | . . . Robots Melted . | . . . Combat Hostiles . | . . . Parts Melted . | . . . Heat Transferred 337 | . 337 . Parts Sabotaged . | . . . Parts Stolen . | . . . Parts Stripped . | . . . Power Chain Reactions 1 | . 1 . Missiles Intercepted . | . . . Alert | -11 -10 -9 ------- Run | Scr Mat Mat Peak Influence 273 | . 273 60 Initial 30 | . . 30 Average 150 | . 190 33 Maximum Alert Level 1 | . 1 . Low Security (%) 47 | 100 31 100 Level 1 52 | . 68 . Level 2 . | . . . Level 3 . | . . . Level 4 . | . . . Level 5 . | . . . High Security . | . . . Max Security . | . . . Squads Dispatched 1 | . . 1 Investigation . | . . . Extermination . | . . . Reinforcement 1 | . . 1 Assault . | . . . Garrison . | . . . Intercept . | . . . Searches Triggered . | . . . Construction Impeded . | . . . Haulers Reinforced . | . . . Active Scanning Responses . | . . . Cargo Convoy Interrupts . | . . . Stealth | -11 -10 -9 --------- Run | Scr Mat Mat Distress Signals 1 | . . 1 Communications Jammed . | . . . Distress Signals . | . . . Times Spotted 18 | . 6 12 Peak Tracking Total 11 | . 4 11 Tactical Retreats 1 | . . 1 Traps | -11 -10 -9 ------- Run | Scr Mat Mat Traps Triggered . | . . . Indirectly . | . . . Trap Hack Attempts . | . . . Triggered . | . . . Disarmed . | . . . Reprogrammed . | . . . Reused . | . . . Traps Extracted . | . . . Installed . | . . . Triggered . | . . . Machines | -11 -10 -9 ---------- Run | Scr Mat Mat Machines Disabled 3 | . 3 . Max in Single Turn 3 | . 3 . Machines Sabotaged . | . . . Garrisons Compromised . | . . . Overloaded Fab Kills . | . . . Hacking | -11 -10 -9 --------- Run | Scr Mat Mat Machines Accessed 4 | . 4 . Terminals 4 | . 4 . Fabricators . | . . . Repair Stations . | . . . Recycling Units . | . . . Scanalyzers . | . . . Garrison Access . | . . . Total Hacks 8 | . 8 . Successful 5 | . 5 . Failed 3 | . 3 . Catastrophic . | . . . Database Lockouts . | . . . Manual 7 | . 7 . Terminals 8 | . 8 . Fabricators . | . . . Repair Stations . | . . . Recycling Units . | . . . Scanalyzers . | . . . Garrison Access . | . . . Terminal Hacks 2 | . 2 . Prototype ID Bank 1 | . 1 . Zone Layout 1 | . 1 . Fabricator Hacks . | . . . Repair Station Hacks . | . . . Recycling Unit Hacks . | . . . Scanalyzer . | . . . Garrison Access Hacks . | . . . Unauthorized Hacks 3 | . 3 . Terminals 3 | . 3 . Botnet 2 | . 2 . Operators 1 | . 1 . Fabricators . | . . . Repair Stations . | . . . Recycling Units . | . . . Scanalyzers . | . . . Garrison Access . | . . . Data Cores Recovered . | . . . Used . | . . . Hacking Detections 3 | . 3 . Full Trace Events . | . . . Feedback Events . | . . . Feedback Blocked . | . . . Robot Schematics Acquired . | . . . Robots Built . | . . . Authchips . | . . . Time . | . . . Total Robot Build Rating . | . . . Part Schematics Acquired . | . . . Parts Built . | . . . Authchips . | . . . Time . | . . . Total Part Build Rating . | . . . Parts Repaired . | . . . Time . | . . . Parts Recycled . | . . . Recycled Matter . | . . . Retrieved Matter . | . . . Retrieved Components . | . . . Parts Scanalyzed . | . . . Part Schematics Acquired . | . . . Parts Damaged . | . . . Bothacking | -11 -10 -9 ------------ Run | Scr Mat Mat Used RIF Installer . | . . . Robots Hacked . | . . . Non-combat . | . . . Combat . | . . . Robot Hacks Applied . | . . . Relay Couplers Released . | . . . Fabnet Peak Effective % . | . . . Robots Rewired . | . . . Allies Hacked . | . . . Hacks Repelled . | . . . Allies | -11 -10 -9 -------- Run | Scr Mat Mat Total Allies . | . . . Largest Group . | . . . Highest-Rated Group . | . . . Highest-Rated Ally . | . . . Total Orders . | . . . Ally Attacks . | . . . Total Damage . | . . . Kills . | . . . Allies Corrupted . | . . . Allies Melted . | . . . Intel | -11 -10 -9 ------- Run | Scr Mat Mat Robot Analysis Total . | . . . Derelict Logs Recovered . | . . . Drone Launches . | . . . Drone Recoveries . | . . . Exploration | -11 -10 -9 ------------- Run | Scr Mat Mat Turns Passed 683 | 52 522 109 Spaces Moved 303 | 40 208 55 Core 7 | 5 2 . Treads . | . . . Legs 241 | . 186 55 Wheels 55 | 35 20 . Hover . | . . . Flight . | . . . Fastest Speed 50 | 50 95 190 Average Speed 198 | 85 222 190 Slowest Speed 260 | 95 260 190 Overloaded Moves . | . . . Propulsion Burnouts . | . . . Robots Hopped . | . . . Cave-ins Triggered . | . . . Exploration Rate (%) 20 | 3 49 8 Regions Visited 2 Branch Regions . Pre-discovered Areas . | . . . Known Exits Taken . | . . . Unknown Exits Taken 2 | 1 1 . Scrap Searched . | . . . Spaces Dug . | . . . Terrain Destroyed 50 | . 50 . Melee . | . . . Projectile . | . . . AOE 50 | . 50 . Terrain Rammed . | . . . Walls Destroyed . | . . . Machines Disabled . | . . . Actions | -11 -10 -9 --------- Run | Scr Mat Mat Total 356 | 54 243 59 Wait 11 | . 11 . Move 301 | 39 207 55 Hop . | . . . Pick Up 13 | 6 5 2 Fast Attach 8 | 6 2 . Attach 4 | 1 1 2 Detach 1 | 1 . . Swap 3 | 1 2 . Drop . | . . . Fire 14 | . 14 . Melee . | . . . Ram . | . . . Kick 1 | . 1 . Crush . | . . . Escape Stasis . | . . . Rewire . | . . . Trap . | . . . Miscellaneous . | . . . Route ------- -11/Scrapyard -10/Materials -9/Materials History --------- Turn | Location | Event 28 | -11/Scrapyard | Discovered new exit (range 15) 53 | -11/Scrapyard | Entered Materials 317 | -10/Materials | Build established: Mutant 376 | -10/Materials | Discovered new exit (range 7) 575 | -10/Materials | Entered another Materials area 575 | -9/Materials | Evolved 2 slots: Propulsion x1, Utility x1 684 | -9/Materials | Self-destructed Last Messages --------------- 00407_ Connecting with Terminal... >>Prototypes Downloading prototype IDs... Imp. Flight Unit Imp. EM Shotgun 00475_ System corrupted: Heat flow error (+253). 00490_ Acquired Weapon Shielding. 00520_ System corrupted: Substantial component data lost. PARAMETERS=PROPULSION+1,UTILITY+1 LOCATION=UNKNOWN GOAL=ESCAPE 00618_ O-16 Technician: "IFF HANDSHAKE FAILED. SECURING TERMINAL." 00618_ O-16 Technician sends out distress signal. 00620_ O-16 Technician uses terminal to summon reinforcements. 00620_ ALERT: Hostiles spotted, dispatching reinforcements to Terminal M011. 00620_ O-16 Technician locks terminal. 00633_ Acquired Lgt. Assault Rifle. 00637_ Acquired Rocket Launcher. 00683_ EM Pulse Gun destroyed. Map ----- +----------------------------------------------------+ | ??????????????# ???# ?????????????????? | | ??????????????# ??# ?????????????????? | | ??????????????# ""??? ?????????????????? | | ??????????????# """#? ?????????????????? | | ??????????????# """#?# ######????????????? | | ??????????????# """#?# # #????????????? | | ??????????????# """#?# #"" #????????????? | | ??????????????# #?# #"Y #????????????? | | ??????????????# #?# #"" #??????#?????? | | ??????????????# #?# # ###### #?????? | | ?????????????####+####### ###+### #?????? | | ?????????????# #?????? | | ?????????????# T #?????? | | ?????????????# #?????? | | ?????????????###########g########## #?????? | | ????????????????????# a #????## ##?????? | | ????????????????????# #?????? #??????? | | ????????????????????# #?????? #??????? | | ????????????????????# #?????? +??????? | | ????????????????????# #?????? #??????? | | ????????????????????# #?????? #??????? | | ????????????????????# #??????? #??????? | | ????????????????????# #???????###??????? | | ????????????????????# w #????????????????? | | ????????????????????##/#######????????????????? | | ?????????????????????#@#??????????????????????? | | ???????????????????? ?????????????????????? | | ?????????????????? ggg#????????????????????? | | ????????????????! #????????????????????? | | ??????????????s!! """ +????????????????????? | | ???????????? s "T" #????????????????????? | | ??????????# ss #????????????????????? | | ??????????# #????????????????????? | | ??????????+ !!! #????????????????????? | | ??????????# !!! #????????????????????? | | ??????????? !?! ????????????????????? | | ??????????? ???? ????????????????????? | | ????????????? ????????? ????????????????????? | | ???????????????????????? #????????????????????? | | ????????????????????????##????????????????????? | | ??????????????????????????????????????????????? | | ??????????????????????????????????????????????? | | ??????????????????????????????????????????????? | | ??????????????????????????????????????????????? | | ??????????????????????????????????????????????? | | ??????????????????????????????????????????????? | | ??????????????????????????????????????????????? | | ??????????????????????????????????????????????? | | ??????????????????????????????????????????????? | | ??????????????????????????????????????????????? | +----------------------------------------------------+ Best States ------------- Heat Dissipation 42 Energy Generation 10 Energy Capacity 250 Matter Stores 300 Matter Capacity 300 Sight Range 16 Terrain Scan Density 10 Weapon Shielding 33 Evasion (%) 44 Item Schematics ----------------- None Robot Schematics ------------------ None Fabricated ------------ Nothing Alien Tech Used ----------------- None Achievements -------------- None Challenges ------------ None Game ------ Seed UltimateTiamatNanovents Manual? 0 Play Time 00:04:16 Cumulative 69.3 hours Start 2022.04.16 @ 16:16:02 End 2022.04.16 @ 16:19:47 Sessions 1 Manual Loads 0 Difficulty Rogue Special Mode None Game No. 109 Rogue 109 Adventurer 0 Explorer 0 Win Type - Total 1 Types 1/0/0/0/0/0/0/0/0 Lore% 50 Gallery% 53 Achievement% 38 Wizard Run 0 Options --------- ASCII 0 Keyboard 0 Movement Numpad Keybinds 0 Fullscreen 1 Font 18/SmallcapsGlow Map View 76x50 Tactical HUD 1 Map Filters NONE Filters NONE Steam 1 RUN: 139414cb-a882-469c-9540-9b12d74cfd66